bitfinex-derivatives/quotes_BTCF0:USTF0_20210109
["timestamp","ask_amount","ask_price","bid_price","bid_amount"]
[1610207361097,0.07698,40558.0,40557.0,4.16601652]
[1610207363302,0.07698,40558.0,40557.0,4.21593677]
[1610207363502,0.07528,40568.0,40557.0,4.21593677]
[1610207363702,0.07528,40568.0,40557.0,2.90099244]
[1610207363902,0.07528,40568.0,40567.0,3.124]
[1610207364104,0.13632608,40588.0,40567.0,3.124]
[1610207364304,0.13632608,40588.0,40567.0,3.1626714]
[1610207364504,0.13632608,40588.0,40568.0,0.0386699]
[1610207364903,0.13632608,40588.0,40583.0,3.6521]
[1610207365104,3.0727,40608.0,40583.0,3.6521]
[1610207365303,3.0727,40608.0,40583.0,3.82708899]
[1610207366305,3.0727,40608.0,40583.0,3.7990605]
[1610207366606,3.0727,40608.0,40583.0,3.7886405]
[1610207367206,0.13632608,40593.0,40583.0,3.7886405]
[1610207368107,0.13632608,40593.0,40583.0,0.1365405]
[1610207368509,0.13632608,40593.0,40583.0,2.9239405]
[1610207368708,0.13632608,40593.0,40583.0,0.1365405]
[1610207368908,3.1841,40592.0,40583.0,0.1365405]
[1610207369311,0.28219406,40584.0,40583.0,0.1365405]
[1610207369508,0.28219406,40584.0,40583.0,0.00021442]
[1610207370109,0.28219406,40584.0,40580.0,0.00021445]
[1610207370309,0.28219406,40584.0,40583.0,0.00021445]
[1610207370509,0.28219406,40584.0,40581.0,0.00021445]
[1610207370910,0.28219406,40584.0,40580.0,0.00021445]
[1610207371110,0.28219406,40584.0,40582.0,0.00021445]
[1610207371311,0.28219406,40584.0,40581.0,0.00021445]
[1610207371710,0.28219406,40584.0,40583.0,0.00021445]
[1610207371913,0.28219406,40584.0,40582.0,0.00021445]
[1610207372117,0.28219406,40584.0,40583.0,0.00021445]
[1610207372712,0.28219406,40584.0,40581.0,0.00021445]
[1610207372917,0.28219406,40584.0,40583.0,0.00021445]
[1610207373316,0.28219406,40584.0,40582.0,0.00021447]
[1610207373514,0.28219406,40584.0,40583.0,0.00021447]
[1610207374115,0.28219406,40584.0,40573.0,0.00021447]
[1610207374314,0.28219406,40584.0,40583.0,0.00021447]
[1610207374515,0.28219406,40584.0,40574.0,0.00021447]
[1610207374714,0.28219406,40584.0,40583.0,0.00021447]
[1610207375114,0.28219406,40584.0,40573.0,0.00021447]
[1610207375314,0.28219406,40584.0,40583.0,0.00021447]
[1610207375716,0.28219406,40584.0,40581.0,0.13632608]
[1610207375915,0.28219406,40584.0,40583.0,0.00021447]
[1610207376116,0.28219406,40584.0,40582.0,0.00021447]
[1610207376415,0.28219406,40584.0,40583.0,0.00021445]
[1610207377017,0.28219406,40584.0,40582.0,0.00021445]
[1610207377216,0.28219406,40584.0,40583.0,0.00021445]
[1610207377718,0.28219406,40584.0,40582.0,0.00021445]
[1610207377917,0.28219406,40584.0,40583.0,0.00021445]
[1610207378318,0.28219406,40584.0,40582.0,0.00021445]
[1610207378519,0.28219406,40584.0,40583.0,0.00021445]
[1610207379018,0.28219406,40584.0,40582.0,0.00021445]
[1610207379218,0.28219406,40584.0,40583.0,0.00021445]
[1610207379419,0.28219406,40584.0,40583.0,3.66861445]
[1610207379621,0.14586798,40584.0,40583.0,3.6684]
[1610207379819,0.14586798,40584.0,40583.0,3.66861445]
[1610207383224,0.28219406,40584.0,40583.0,3.66861445]
[1610207384625,0.28219406,40584.0,40583.0,0.00021445]
[1610207385226,0.28219406,40584.0,40573.0,0.13632608]
[1610207385426,0.28219406,40584.0,40583.0,0.00021445]
[1610207385627,0.28219406,40584.0,40574.0,0.01063711]
[1610207385826,0.28219406,40584.0,40583.0,0.00021445]
[1610207386227,0.28219406,40584.0,40574.0,0.01063711]
[1610207386426,0.28219406,40584.0,40583.0,0.00021445]
[1610207386630,0.28219406,40584.0,40575.0,0.00021445]
[1610207386930,0.28219406,40584.0,40583.0,0.00021447]
[1610207387129,0.28219406,40584.0,40576.0,0.00021447]
[1610207387332,0.13632608,40577.0,40576.0,0.00021447]
[1610207387530,0.21105608,40577.0,40574.0,0.01063713]
[1610207387730,0.21105608,40577.0,40576.0,0.00021447]
[1610207387932,0.21105608,40577.0,40575.0,0.00021447]
[1610207388332,0.21105608,40577.0,40574.0,0.01042266]
[1610207388333,0.21105608,40577.0,40574.0,0.01063713]
[1610207388535,0.21105608,40577.0,40576.0,0.00021312]
[1610207388732,0.21105608,40577.0,40575.0,0.00021312]
[1610207389132,0.21105608,40577.0,40574.0,0.01063578]
[1610207389333,0.21105608,40577.0,40576.0,0.00021312]
[1610207389533,0.21105608,40577.0,40575.0,0.00021312]
[1610207389937,0.21105608,40577.0,40576.0,0.00021312]
[1610207390335,0.21105608,40577.0,40574.0,0.01063578]
[1610207390635,0.21105608,40577.0,40576.0,0.00021312]
[1610207390835,0.21105608,40577.0,40575.0,0.00021312]
[1610207391236,0.21105608,40577.0,40574.0,0.01063578]
[1610207391437,0.21105608,40577.0,40576.0,0.00021312]
[1610207391637,0.21105608,40577.0,40575.0,0.00021312]
[1610207392038,0.21105608,40577.0,40576.0,0.00021312]
[1610207392441,0.21105608,40577.0,40574.0,0.00021314]
[1610207392840,0.21105608,40577.0,40576.0,0.00021314]
[1610207393040,0.21105608,40577.0,40575.0,0.00021314]
[1610207393243,0.21105608,40577.0,40576.0,0.00021314]
[1610207393841,0.21105608,40577.0,40574.0,0.01024315]
[1610207394041,0.21105608,40577.0,40576.0,0.00021314]
[1610207394241,0.21105608,40577.0,40575.0,0.00021314]
[1610207394842,0.21105608,40577.0,40574.0,0.00021314]
[1610207395045,0.21105608,40577.0,40576.0,0.00021314]
[1610207395445,0.21105608,40577.0,40574.0,0.00021314]
[1610207395645,0.21105608,40577.0,40576.0,0.00021314]
[1610207395843,0.21105608,40577.0,40575.0,0.00021314]
[1610207396244,0.21105608,40577.0,40574.0,0.00021314]
[1610207396446,0.21105608,40577.0,40576.0,0.00021314]
[1610207396645,0.21105608,40577.0,40574.0,0.01024327]
[1610207397046,0.21105608,40577.0,40576.0,0.00021314]
[1610207397246,0.21105608,40577.0,40575.0,0.00021314]
[1610207397446,0.21105608,40577.0,40576.0,0.00021314]
[1610207398048,0.21105608,40577.0,40574.0,0.01024327]
[1610207398248,0.21105608,40577.0,40576.0,0.00021314]
[1610207398648,0.21105608,40577.0,40575.0,0.00021314]
[1610207398849,0.21105608,40577.0,40576.0,0.00021314]
[1610207399453,3.823,40575.0,40574.0,0.01024325]
[1610207399652,3.823,40575.0,40574.0,0.01003013]
[1610207399855,3.823,40575.0,40574.0,0.01024325]
[1610207400054,0.21105608,40577.0,40574.0,0.01024325]
[1610207401855,0.21105608,40577.0,40574.0,0.46154325]
[1610207402256,0.21105608,40577.0,40575.0,0.01024322]
[1610207404656,0.21105608,40577.0,40575.0,0.0100301]
[1610207413275,0.21105608,40577.0,40574.0,0.01024253]
[1610207413475,0.21105608,40577.0,40576.0,0.01024246]
[1610207413777,0.21105608,40577.0,40574.0,0.0102425]
[1610207413978,0.21105608,40577.0,40576.0,0.01002948]
[1610207414177,0.21105608,40577.0,40576.0,0.0102426]
[1610207414378,0.21105608,40577.0,40574.0,0.01024271]
[1610207414577,0.21105608,40577.0,40576.0,0.0102428]
[1610207414780,0.21105608,40577.0,40576.0,0.00021312]
[1610207414979,0.21105608,40577.0,40575.0,0.01024273]
[1610207415178,0.21105608,40577.0,40574.0,0.01002966]
[1610207415378,0.21105608,40577.0,40576.0,0.01002978]
[1610207415582,0.21105608,40577.0,40575.0,0.01024297]
[1610207415980,0.21105608,40577.0,40574.0,0.01024291]
[1610207416180,0.21105608,40577.0,40576.0,0.01024285]
[1610207416379,0.21105608,40577.0,40575.0,0.01024285]
[1610207416781,0.21105608,40577.0,40576.0,0.01024283]
[1610207417180,3.37125608,40577.0,40574.0,0.01024289]
[1610207417580,3.37125608,40577.0,40576.0,0.01024289]
[1610207417781,3.37125608,40577.0,40573.0,0.13632608]
[1610207417782,3.37125608,40577.0,40575.0,0.01024284]
[1610207417982,0.21105608,40577.0,40576.0,0.01024284]
[1610207418583,0.21105608,40577.0,40574.0,0.01024284]
[1610207418781,0.21105608,40577.0,40576.0,0.01024286]
[1610207418982,0.21105608,40577.0,40576.0,0.01002974]
[1610207419182,0.21105608,40577.0,40575.0,0.01024286]
[1610207419382,0.21105608,40577.0,40576.0,0.01024283]
[1610207419781,0.21105608,40577.0,40576.0,0.00021312]
[1610207419982,0.21105608,40577.0,40574.0,0.01024283]
[1610207420183,0.21105608,40577.0,40576.0,0.00021312]
[1610207420382,0.21105608,40577.0,40575.0,0.00021312]
[1610207420582,0.21105608,40577.0,40576.0,0.00021312]
[1610207420884,0.21105608,40577.0,40574.0,0.01024283]
[1610207421282,0.21105608,40577.0,40576.0,0.00021312]
[1610207421482,0.21105608,40577.0,40575.0,0.00021312]
[1610207421681,0.21105608,40577.0,40576.0,0.00021312]
[1610207422282,0.21105608,40577.0,40574.0,0.01024283]
[1610207422482,0.21105608,40577.0,40576.0,0.00021312]
[1610207422682,0.21105608,40577.0,40575.0,0.00021312]
[1610207422983,0.21105608,40577.0,40574.0,0.01024283]
[1610207423282,0.21105608,40577.0,40576.0,0.00021312]
[1610207423486,0.21105608,40577.0,40575.0,0.00021312]
[1610207423784,0.21105608,40577.0,40574.0,0.01024283]
[1610207424085,0.21105608,40577.0,40576.0,0.00021312]
[1610207424285,0.21105608,40577.0,40575.0,0.00021312]
[1610207424584,0.21105608,40577.0,40576.0,0.00021312]
[1610207425086,0.21105608,40577.0,40574.0,0.01024283]
[1610207425486,0.21105608,40577.0,40576.0,0.00021312]
[1610207425686,0.21105608,40577.0,40575.0,0.00021312]
[1610207425888,0.21105608,40577.0,40576.0,0.00021312]
[1610207426387,0.21105608,40577.0,40574.0,0.01024283]
[1610207429095,0.21105608,40577.0,40574.0,0.03766041]
[1610207431798,0.21105608,40577.0,40575.0,4.0969]
[1610207432198,0.21105608,40577.0,40576.0,0.03765936]
[1610207436105,0.07473,40577.0,40576.0,0.03765936]
[1610207436307,0.14586798,40584.0,40576.0,0.03765936]
[1610207437708,0.14586798,40584.0,40583.0,0.13632608]
[1610207438309,0.14586798,40584.0,40583.0,0.14656662]
[1610207439611,0.28219406,40584.0,40583.0,0.14656662]
[1610207446924,0.28219406,40584.0,40583.0,0.59846662]
[1610207451433,0.28219406,40584.0,40583.0,0.14656662]
[1610207451834,0.28219406,40584.0,40583.0,0.01024054]
[1610207452036,4.37459406,40584.0,40583.0,0.01024054]
[1610207452235,4.37459406,40584.0,40570.0,3.5567]
[1610207452437,4.37459406,40584.0,40583.0,0.01056743]
[1610207452835,4.37459406,40584.0,40571.0,0.03849288]
[1610207453036,4.37459406,40584.0,40583.0,0.01056775]
[1610207453236,4.37459406,40584.0,40572.0,0.01056816]
[1610207453437,4.37459406,40584.0,40583.0,0.01056828]
[1610207453838,4.37459406,40584.0,40573.0,0.0105682]
[1610207454038,4.37459406,40584.0,40583.0,0.01056834]
[1610207454239,4.37459406,40584.0,40574.0,0.01056856]
[1610207454639,4.37459406,40584.0,40571.0,0.0384941]
[1610207454839,4.37459406,40584.0,40575.0,0.01056863]
[1610207455042,4.37459406,40584.0,40572.0,0.01056877]
[1610207455340,4.37459406,40584.0,40576.0,0.01056893]
[1610207455543,0.28219406,40584.0,40572.0,0.03849804]
[1610207455740,0.13632608,40573.0,40572.0,0.03849804]
[1610207455942,0.24698608,40573.0,40569.0,0.01056969]
[1610207456140,4.03198608,40573.0,40572.0,0.01057015]
[1610207456342,4.03198608,40573.0,40570.0,0.0105708]
[1610207456742,4.03198608,40573.0,40557.0,0.03850489]
[1610207456940,4.03198608,40573.0,40571.0,0.01057219]
[1610207457141,4.03198608,40573.0,40558.0,0.0105692]
[1610207457342,0.24698608,40573.0,40558.0,0.0105692]
[1610207457543,0.24698608,40573.0,40558.0,3.6247]
[1610207457742,0.11066,40573.0,40559.0,0.01056996]
[1610207457941,0.11066,40573.0,40559.0,0.03850337]
[1610207458343,0.11066,40573.0,40559.0,0.01056996]
[1610207458543,0.11066,40573.0,40558.0,3.6247]
[1610207458544,0.11066,40573.0,40560.0,0.01057175]
[1610207459043,0.11066,40573.0,40559.0,0.01057178]
[1610207459244,0.11066,40573.0,40561.0,0.01057203]
[1610207459445,2.9807,40565.0,40561.0,0.01057203]
[1610207459645,2.9807,40565.0,40554.0,3.2577]
[1610207459844,0.13632608,40555.0,40554.0,3.2577]
[1610207460046,0.22109608,40555.0,40554.0,3.2577]
[1610207460245,0.22109608,40555.0,40548.0,2.68609921]
[1610207460445,0.22109608,40555.0,40554.0,0.01057283]
[1610207460649,0.22109608,40555.0,40549.0,0.01057275]
[1610207460844,0.22109608,40555.0,40554.0,0.01057266]
[1610207461245,0.22109608,40555.0,40549.0,0.59607264]
[1610207461444,0.22109608,40555.0,40554.0,0.01057266]
[1610207461645,0.22109608,40555.0,40550.0,0.01057266]
[1610207462045,0.22109608,40555.0,40554.0,4.04177263]
[1610207462244,0.22109608,40555.0,40554.0,4.0312]
[1610207462446,0.22109608,40555.0,40554.0,4.04177316]
[1610207462646,0.22109608,40555.0,40554.0,0.01057316]
[1610207463046,0.22109608,40555.0,40551.0,3.7476]
[1610207463245,0.22109608,40555.0,40554.0,0.01057335]
[1610207463647,0.22109608,40555.0,40552.0,0.01057342]
[1610207463847,0.22109608,40555.0,40554.0,0.14689948]
[1610207464048,0.22109608,40555.0,40554.0,0.13632608]
[1610207464248,0.22109608,40555.0,40554.0,0.1468994]
[1610207464851,0.22109608,40555.0,40554.0,0.14689948]
[1610207465050,0.22109608,40555.0,40554.0,0.14689944]
[1610207466654,3.54519608,40555.0,40554.0,0.14689944]
[1610207467655,3.54519608,40555.0,40554.0,0.01057336]
[1610207468055,3.54519608,40555.0,40546.0,0.03851531]
[1610207468256,3.54519608,40555.0,40554.0,0.01057409]
[1610207468457,3.54519608,40555.0,40547.0,0.01057409]
[1610207468756,3.54519608,40555.0,40546.0,0.03851529]
[1610207469056,3.54519608,40555.0,40548.0,0.01057411]
[1610207469256,3.54519608,40555.0,40547.0,0.01057411]
[1610207469557,3.54519608,40555.0,40546.0,0.03851513]
[1610207469756,0.13632608,40547.0,40546.0,0.03851513]
[1610207469956,0.13632608,40547.0,40546.0,0.0279412]
[1610207470159,4.06112608,40547.0,40546.0,0.01057416]
[1610207470558,4.06112608,40547.0,40545.0,0.01057425]
[1610207470859,0.13632608,40547.0,40545.0,0.01057425]
[1610207472861,0.13632608,40547.0,40545.0,0.03851466]
[1610207473060,0.13632608,40547.0,40546.0,3.1996]
[1610207473259,0.13632608,40547.0,40545.0,0.01057425]
[1610207473462,4.1063,40546.0,40544.0,0.13632608]
[1610207473760,4.1063,40546.0,40545.0,0.01057416]
[1610207474861,4.1063,40546.0,40545.0,0.01057432]
[1610207476762,4.1063,40546.0,40541.0,0.01057499]
[1610207476961,0.13632608,40547.0,40537.0,2.54104255]
[1610207476962,0.13632608,40547.0,40545.0,0.01057531]
[1610207477162,0.0855,40546.0,40542.0,0.01056618]
[1610207477363,4.0514,40546.0,40542.0,0.01056618]
[1610207477561,4.0514,40546.0,40536.0,0.01056733]
[1610207477762,4.0514,40546.0,40543.0,0.00021436]
[1610207477962,4.0514,40546.0,40527.0,3.41417]
[1610207477963,4.0514,40546.0,40537.0,0.01056985]
[1610207478362,4.0514,40546.0,40528.0,0.01057029]
[1610207478563,4.0514,40546.0,40538.0,0.00021437]
[1610207478762,4.0514,40546.0,40529.0,0.01057155]
[1610207479162,4.0514,40546.0,40539.0,0.00021437]
[1610207479364,4.0514,40546.0,40530.0,0.01057233]
[1610207479564,4.0514,40546.0,40540.0,0.00021439]
[1610207479965,0.5126,40539.0,40531.0,0.00021439]
[1610207480166,0.5126,40539.0,40527.0,3.3406]
[1610207480366,0.5126,40539.0,40532.0,0.00021439]
[1610207480668,0.5126,40539.0,40528.0,0.00021439]
[1610207480866,0.5126,40539.0,40533.0,0.00021439]
[1610207481266,0.5126,40539.0,40528.0,0.00021439]
[1610207481466,0.5126,40539.0,40534.0,0.00021439]
[1610207481666,0.5126,40539.0,40529.0,0.00021439]
[1610207481866,0.13632608,40530.0,40529.0,0.00021439]
[1610207482066,0.13632608,40530.0,40527.0,3.3406]
[1610207482267,0.22744608,40530.0,40529.0,0.0002144]
[1610207482467,0.22744608,40530.0,40528.0,0.0002144]
[1610207482667,0.22744608,40530.0,40529.0,3.1337]
[1610207482867,0.22744608,40530.0,40529.0,3.1339144]
[1610207483066,0.22744608,40530.0,40529.0,3.14427266]
[1610207483970,0.22744608,40530.0,40529.0,3.28059874]
[1610207484770,0.22744608,40530.0,40529.0,0.14689874]
[1610207485671,0.22744608,40530.0,40529.0,0.13654048]
[1610207486470,0.22744608,40530.0,40529.0,0.14689808]
[1610207487070,0.22744608,40530.0,40529.0,0.13654046]
[1610207487271,0.22744608,40530.0,40529.0,0.14689846]
[1610207488174,0.22744608,40530.0,40529.0,0.13654046]
[1610207488573,0.22744608,40530.0,40529.0,0.14689834]
[1610207488772,0.22744608,40530.0,40529.0,0.13654046]
[1610207489372,0.22744608,40530.0,40529.0,0.14689852]
[1610207489573,0.22744608,40530.0,40529.0,0.01057244]
[1610207489772,3.91464608,40530.0,40529.0,0.01057244]
[1610207489973,3.91464608,40530.0,40524.0,0.13632608]
[1610207490173,3.91464608,40530.0,40529.0,0.00021438]
[1610207490376,3.91464608,40530.0,40525.0,0.0105728]
[1610207490875,3.91464608,40530.0,40517.0,0.01057286]
[1610207491976,0.13632608,40518.0,40517.0,0.14689894]
[1610207492477,3.77832,40530.0,40517.0,0.14689894]
[1610207492877,3.77832,40530.0,40518.0,0.01057297]
[1610207493981,0.13632608,40519.0,40518.0,0.01057297]
[1610207494581,3.38422608,40519.0,40518.0,0.01057297]
[1610207494981,3.38422608,40519.0,40509.0,0.01057603]
[1610207495182,0.13632608,40519.0,40518.0,0.00021447]
[1610207495383,0.13632608,40519.0,40502.0,0.07656]
[1610207495384,3.42432608,40519.0,40510.0,0.0002145]
[1610207495784,3.42432608,40519.0,40502.0,0.07656]
[1610207495785,0.13632608,40519.0,40503.0,0.00021456]
[1610207495984,3.46462608,40504.0,40502.0,0.07656]
[1610207496184,3.6293,40486.0,40480.0,2.52837714]
[1610207496389,0.13632608,40504.0,40474.0,2.52617039]
[1610207496586,0.13632608,40504.0,40503.0,0.00021463]
[1610207496786,3.85772608,40504.0,40496.0,0.07827]
[1610207496986,0.13632608,40504.0,40496.0,0.07827]
[1610207497386,3.2754,40497.0,40496.0,0.07827]
[1610207497785,3.2754,40497.0,40474.0,0.08908]
[1610207497984,0.13632608,40475.0,40474.0,0.08908]
[1610207498387,0.13632608,40475.0,40474.0,0.08929468]
[1610207498784,0.13632608,40475.0,40474.0,0.00021468]
[1610207499185,0.13632608,40475.0,40457.0,0.01059964]
[1610207499386,0.13632608,40475.0,40453.0,0.13632608]
[1610207499387,2.9809,40472.0,40455.0,0.01038527]
[1610207499590,2.9809,40472.0,40458.0,0.01060003]
[1610207499790,2.9809,40472.0,40458.0,0.12506003]
[1610207499990,0.13632608,40475.0,40471.0,0.13632608]
[1610207500389,3.8549,40472.0,40471.0,0.13632608]
[1610207500992,0.23477608,40475.0,40444.0,0.2766]
[1610207501192,0.23477608,40475.0,40460.0,3.7681]
[1610207501790,0.23477608,40475.0,40444.0,0.36749]
[1610207501991,0.09845,40475.0,40474.0,0.13632608]
[1610207502192,0.09298,40485.0,40474.0,0.13632608]
[1610207502796,0.09298,40485.0,40462.0,3.0286]
[1610207502997,0.09298,40485.0,40454.0,0.11097]
[1610207502998,2.7743,40474.0,40454.0,0.11097]
[1610207503795,2.88156,40474.0,40454.0,0.11097]
[1610207503995,0.13632608,40455.0,40454.0,0.11097]
[1610207504596,0.10726,40474.0,40454.0,0.11097]
[1610207504795,0.10726,40474.0,40452.0,0.13632608]
[1610207505896,0.13632608,40456.0,40452.0,0.13632608]
[1610207507500,0.09999,40465.0,40452.0,0.13632608]
[1610207507900,0.13632608,40462.0,40461.0,0.13632608]
[1610207508702,0.10726,40474.0,40461.0,0.13632608]
[1610207509102,1.0,40501.0,40461.0,0.13632608]
[1610207509304,2.9801,40488.0,40461.0,0.13632608]
[1610207509903,0.13632608,40462.0,40458.0,0.13632608]
[1610207513308,0.13632608,40462.0,40444.0,0.09089]
[1610207513707,0.13632608,40462.0,40442.0,2.866]
[1610207513907,0.11333,40473.0,40452.0,0.13632608]
[1610207515310,3.4134,40475.0,40452.0,0.13632608]
[1610207516010,0.13632608,40453.0,40452.0,0.13632608]
[1610207516813,4.0219,40464.0,40452.0,0.13632608]
[1610207518015,4.0219,40464.0,40463.0,0.13632608]
[1610207519822,4.0219,40464.0,40445.0,0.09808]
[1610207520023,0.13632608,40456.0,40452.0,0.13632608]
[1610207520624,3.2568,40453.0,40452.0,0.13632608]
[1610207523426,0.13632608,40456.0,40452.0,0.13632608]
[1610207526329,0.13632608,40456.0,40445.0,0.09808]
[1610207526529,3.6832,40453.0,40418.0,2.7952]
[1610207526729,0.13632608,40456.0,40375.0,0.4503]
[1610207526730,0.13632608,40456.0,40407.0,2.49397581]
[1610207526930,3.5592,40425.0,40407.0,0.0752]
[1610207527331,0.09516,40451.0,40407.0,0.0752]
[1610207527929,3.1345,40418.0,40407.0,0.0752]
[1610207528130,0.13632608,40408.0,40407.0,0.0752]
[1610207528730,1.12017,40436.0,40407.0,0.0752]
[1610207530133,0.13632608,40424.0,40423.0,0.13632608]
[1610207530935,0.12017,40436.0,40423.0,0.13632608]
[1610207531837,0.12017,40436.0,40407.0,0.0752]
[1610207532037,0.12017,40436.0,40421.0,0.13632608]
[1610207533237,0.09516,40451.0,40421.0,0.13632608]
[1610207533436,3.9606,40452.0,40421.0,0.13632608]
[1610207533636,3.9606,40452.0,40417.0,4.0538]
[1610207534037,0.13632608,40418.0,40417.0,4.0538]
[1610207534241,0.13632608,40418.0,40411.0,0.13632608]
[1610207535342,0.13632608,40418.0,40409.0,0.08]
[1610207535943,0.13632608,40418.0,40392.0,3.4339]
[1610207536147,0.13632608,40410.0,40392.0,3.4339]
[1610207536347,0.13632608,40410.0,40370.0,2.77714467]
[1610207536548,0.13632608,40410.0,40370.0,3.0678]
[1610207536949,0.13632608,40410.0,40370.0,5.56061667]
[1610207538049,0.07771,40431.0,40400.0,0.13632608]
[1610207538250,3.87,40429.0,40400.0,0.22785608]
[1610207540053,0.07771,40431.0,40411.0,0.13632608]
[1610207540255,0.2937,40440.0,40413.0,3.5576]
[1610207540453,2.8456,40455.0,40413.0,3.5576]
[1610207540853,0.09092547,40454.0,40413.0,3.5576]
[1610207542155,1.0,40452.0,40418.0,0.13632608]
[1610207542857,4.0332,40441.0,40418.0,0.13632608]
[1610207543054,4.14688,40441.0,40418.0,0.13632608]
[1610207543957,0.11368,40441.0,40418.0,0.13632608]
[1610207544157,0.13632608,40419.0,40418.0,0.13632608]
[1610207545659,0.13632608,40419.0,40413.0,3.2022]
[1610207545860,0.13632608,40419.0,40404.0,0.2836]
[1610207546062,3.384,40422.0,40414.0,0.13632608]
[1610207546861,3.384,40422.0,40400.0,0.09153]
[1610207547063,3.384,40422.0,40389.0,2.8683]
[1610207548163,3.384,40422.0,40403.0,0.13632608]
[1610207548562,3.384,40422.0,40402.0,0.08398]
[1610207550062,3.384,40422.0,40404.0,0.13632608]
[1610207551162,0.10767,40425.0,40404.0,0.13632608]
[1610207551563,3.0885,40437.0,40404.0,0.13632608]
[1610207552064,3.0885,40437.0,40411.0,0.13632608]
[1610207552264,0.288,40440.0,40411.0,0.13632608]
[1610207552464,0.288,40440.0,40418.0,3.6661]
[1610207552664,0.11368,40441.0,40418.0,3.6661]
[1610207552865,0.0604142,40463.0,40418.0,3.6661]
[1610207553265,0.03050764,40459.0,40418.0,3.6661]
[1610207553466,0.10316,40459.0,40418.0,3.6661]
[1610207554067,0.10316,40459.0,40429.0,0.13632608]
[1610207554268,1.0,40450.0,40429.0,0.13632608]
[1610207554468,1.09786,40450.0,40429.0,0.13632608]
[1610207555170,1.09786,40450.0,40418.0,3.6661]
[1610207555572,1.09786,40450.0,40419.0,0.00021071]
[1610207556171,1.0,40449.0,40422.0,0.13632608]
[1610207556572,1.0,40449.0,40423.0,0.00021071]
[1610207557274,3.5342,40445.0,40423.0,0.00021071]
[1610207558077,3.5342,40445.0,40427.0,0.13632608]
[1610207558276,0.09786,40450.0,40427.0,0.13632608]
[1610207558479,0.09786,40450.0,40428.0,0.00021071]
[1610207558676,0.09786,40450.0,40428.0,3.54371071]
[1610207559076,0.09786,40450.0,40429.0,0.00021071]
[1610207559476,0.10316,40459.0,40429.0,0.00021071]
[1610207559676,1.0,40462.0,40429.0,0.00021071]
[1610207560075,0.13632608,40437.0,40436.0,0.13632608]
[1610207560477,0.13632608,40437.0,40436.0,3.36552608]
[1610207560677,0.13632608,40437.0,40436.0,3.36573674]
[1610207562575,0.13632608,40437.0,40436.0,0.13653674]
[1610207563778,0.13632608,40437.0,40436.0,0.00021066]
[1610207564379,0.13632608,40437.0,40435.0,0.13632608]
[1610207564580,0.13632608,40437.0,40436.0,0.00021062]
[1610207566684,0.13632608,40437.0,40434.0,0.00020903]
[1610207566884,0.13632608,40437.0,40436.0,0.00020903]
[1610207567284,0.13632608,40437.0,40435.0,0.00020903]
[1610207567484,0.13632608,40437.0,40436.0,0.00020903]
[1610207568083,0.13632608,40437.0,40433.0,3.0476]
[1610207568084,0.13632608,40437.0,40434.0,0.00020903]
[1610207568286,0.13632608,40437.0,40436.0,0.00020905]
[1610207568486,0.13632608,40437.0,40435.0,0.00020905]
[1610207568887,0.13632608,40437.0,40436.0,0.00020905]
[1610207569288,0.13632608,40437.0,40434.0,0.00021064]
[1610207569489,0.13632608,40437.0,40436.0,0.00021064]
[1610207569888,0.13632608,40437.0,40434.0,0.00021062]
[1610207570089,0.13632608,40437.0,40436.0,0.00021062]
[1610207570288,0.13632608,40437.0,40435.0,0.00021062]
[1610207571090,0.13632608,40437.0,40434.0,0.00021062]
[1610207571489,0.13632608,40437.0,40434.0,0.00933786]
[1610207572197,0.13632608,40437.0,40435.0,0.13632608]
[1610207572794,0.13632608,40437.0,40436.0,0.00933673]
[1610207574096,0.13632608,40437.0,40436.0,0.00021062]
[1610207574696,0.13632608,40437.0,40434.0,0.00021064]
[1610207574896,0.13632608,40437.0,40436.0,0.00021064]
[1610207575095,0.13632608,40437.0,40435.0,0.00021064]
[1610207575396,0.13632608,40437.0,40436.0,0.00021064]
[1610207575896,0.13632608,40437.0,40434.0,0.00933834]
[1610207576197,0.13632608,40437.0,40436.0,0.00021064]
[1610207576399,0.13632608,40437.0,40435.0,0.00021064]
[1610207576698,0.13632608,40437.0,40434.0,0.00933834]
[1610207576998,0.13632608,40437.0,40436.0,0.00021064]
[1610207577198,0.13632608,40437.0,40435.0,0.00021064]
[1610207577499,0.13632608,40437.0,40434.0,0.00933834]
[1610207577800,0.13632608,40437.0,40436.0,0.00021064]
[1610207578001,0.13632608,40437.0,40435.0,0.00021064]
[1610207578403,0.13632608,40437.0,40436.0,0.00021064]
[1610207578805,0.13632608,40437.0,40435.0,0.00933786]
[1610207579206,0.13632608,40437.0,40436.0,0.00021052]
[1610207579604,0.13632608,40437.0,40435.0,0.00933786]
[1610207580006,0.13632608,40437.0,40436.0,0.00021052]
[1610207580405,0.13632608,40437.0,40434.0,0.00930917]
[1610207580807,0.13632608,40437.0,40436.0,0.00930943]
[1610207581007,0.13632608,40437.0,40435.0,0.00930963]
[1610207581210,0.13632608,40437.0,40436.0,0.00930972]
[1610207581708,0.13632608,40437.0,40434.0,0.00930992]
[1610207582110,0.13632608,40437.0,40436.0,0.00930964]
[1610207582310,0.13632608,40437.0,40435.0,0.00930951]
[1610207582508,0.13632608,40437.0,40436.0,0.00930953]
[1610207583109,0.13632608,40437.0,40434.0,0.00930941]
[1610207583309,0.13632608,40437.0,40436.0,0.00930941]
[1610207583509,0.13632608,40437.0,40435.0,0.0093092]
[1610207583909,0.13632608,40437.0,40434.0,0.00930933]
[1610207584112,0.13632608,40437.0,40436.0,0.00930988]
[1610207584311,0.13632608,40437.0,40435.0,0.00930981]
[1610207584712,0.13632608,40437.0,40434.0,0.00930983]
[1610207584910,0.13632608,40437.0,40436.0,0.00930955]
[1610207585111,0.13632608,40437.0,40435.0,0.00930949]
[1610207585512,0.13632608,40437.0,40429.0,0.00930952]
[1610207585713,0.13632608,40437.0,40436.0,0.00931048]
[1610207585913,0.13632608,40437.0,40430.0,0.00931065]
[1610207586314,0.0774,40447.0,40436.0,0.00931094]
[1610207586514,0.44846664,40450.0,40431.0,0.00931059]
[1610207586718,0.44846664,40450.0,40437.0,0.00931045]
[1610207587116,0.44846664,40450.0,40427.0,0.0259983]
[1610207587117,0.44846664,40450.0,40432.0,0.00931036]
[1610207587316,0.44846664,40450.0,40438.0,0.0093104]
[1610207587517,0.44846664,40450.0,40433.0,0.00930909]
[1610207587918,0.44846664,40450.0,40439.0,0.00930896]
[1610207588117,0.44846664,40450.0,40434.0,0.0093099]
[1610207588317,0.13632608,40435.0,40428.0,0.13632608]
[1610207588919,0.13632608,40435.0,40429.0,0.00930999]
[1610207590322,0.13632608,40430.0,40429.0,0.00930999]
[1610207592826,0.09243,40444.0,40429.0,0.00930999]
[1610207593328,0.09243,40444.0,40430.0,0.00021054]
[1610207593528,0.09243,40444.0,40428.0,0.13632608]
[1610207593727,0.09243,40444.0,40430.0,0.00931093]